[Event "3rd VIZAG GM-Open 2022"]
[Site "Visakapatnam"]
[Date "2022.06.14"]
[Round "6.12"]
[White "Ilamparthi A R"]
[Black "Nguyen, Duc Hoa"]
[Result "1-0"]
[ECO "B40"]
[WhiteElo "2121"]
[BlackElo "2398"]
[Annotator "TA"]
[PlyCount "73"]
[EventDate "2022.06.13"]
[EventType "swiss"]
[EventCountry "IND"]
[SourceTitle "playchess.com"]
[Source "ChessBase"]
[SourceQuality "1"]
[TimeControl "5400+30"]

{[%evp 9,73,-16,-16,-8,37,14,11,12,64,72,63,48,92,56,74,6,14,18,16,0,0,-19,8,0,26,0,0,0,0,0,88,84,109,89,120,124,91,0,50,0,0,-117,-120,-193,-79,-82,-96,-84,-21,-34,-36,-204,50,0,2,0,66,0,482,468,668,511,29992,29979,29995,29996]} 1. e4 {[%emt 0:00:03]} c5 {[%emt 0:00:08]} 2. Nf3 {[%emt 0:00:06]} e6 {[%emt 0:00:20]} 3. d3 {[%emt 0:00:05]} Nc6 {[%emt 0:00:41]} 4. g3 {[%emt 0:00:15]} d5 {[%emt 0:04:12]} 5. Qe2 {[%emt 0:00:07]} Be7 {[%emt 0:27:04]} 6. Bg2 {[%emt 0:00:10] B40: Sicilian: 2...e6, Unusual lines.} h5 {[%emt 0:00:05]} 7. h4 {[%emt 0:15:11]} Nf6 {[%emt 0:06:19]} 8. O-O {[%emt 0:01:16] [#] The position is equal.} d4 $146 {[%emt 0:01:48]} (8... O-O $11) ({Predecessor:} 8... Ng4 9. Re1 b6 10. c4 dxc4 11. dxc4 e5 12. Nc3 Nd4 13. Nxd4 cxd4 14. Nd5 Nf6 {½-½ (56) Keller,T (2268)-Hoppe,T (2239) Nordrheinwestfalen 2016}) 9. e5 $14 {[%emt 0:01:02]} Ng4 {[%emt 0:00:21]} 10. a4 {[%emt 0:01:45]} f6 {[%emt 0:00:52]} 11. exf6 {[%emt 0:04:26]} gxf6 {[%emt 0:00:24]} 12. c3 {[%emt 0:05:59]} (12. Nfd2 $16) 12... e5 $11 {[%emt 0:01:04]} 13. cxd4 {[%emt 0:03:32]} cxd4 {[%emt 0:00:24]} 14. Nbd2 {[%emt 0:03:30]} Be6 {[%emt 0:03:09]} 15. Nc4 {[%emt 0:05:13]} Rc8 {[%emt 0:03:26]} 16. Bd2 {[%emt 0:03:08]} O-O {[%emt 0:02:11]} (16... Bxc4 $5 17. dxc4 f5 $11) 17. a5 {[%emt 0:05:26]} (17. Qe4 Qd7 $15) 17... Bxc4 {[%emt 0:18:51]} 18. dxc4 {[%emt 0:00:10]} d3 {[%emt 0:00:21]} 19. Qe1 {[%emt 0:04:10]} (19. Qe4 f5 20. Qd5+ Qxd5 21. cxd5 Nb4 $17) 19... Kg7 {[%emt 0:17:26]} (19... f5 $11 20. Ng5 e4 21. Bxe4 (21. Ne6 Qd6 $14) 21... fxe4 22. Qxe4 Bxg5 23. Qg6+ Kh8 24. Qxh5+ Bh6 25. Bxh6 Nf6) 20. Bc3 {[%emt 0:04:24]} Qd7 {[%emt 0:03:13]} 21. b4 {[%emt 0:08:47]} b6 {[%emt 0:00:47]} 22. axb6 {[%emt 0:01:14]} axb6 {[%emt 0:00:03]} 23. Qb1 {[%emt 0:11:05]} (23. Ra6 $16) 23... Rfd8 {[%emt 0:02:48]} (23... e4 $11 24. Ng5 Nce5 25. Nxe4 Rxc4) 24. b5 {[%emt 0:02:40]} (24. Nh2 $14) 24... Na5 {[%emt 0:00:40]} 25. Bxa5 {[%emt 0:00:27]} (25. Nd2 $1 $11 {was the only way to keep the balance.}) 25... bxa5 $17 {[%emt 0:00:04]} 26. Rxa5 {[%emt 0:01:32]} (26. Nd2 $17 Bb4 27. Qb2) 26... Rxc4 {[%emt 0:00:15]} (26... e4 $1 $19 {has better winning chances.} 27. Nd2 e3 28. fxe3 Qc7) 27. b6 {[%emt 0:08:30]} Rb4 {[%emt 0:01:45]} 28. Qa2 {[%emt 0:00:20]} e4 {[%emt 0:04:07]} (28... d2 $6 29. Rd1 $11) (28... Rxb6 $17 {aiming for ...e4.} 29. Nd2 (29. Ra7 Qe6 $17) 29... Qd4) 29. Ra7 $11 {[%emt 0:04:59]} Qd6 {[%emt 0:00:14]} 30. Nd2 {[%emt 0:02:50] [#]} (30. Nh2 $1 $15 e3 31. Nxg4 Rxg4 32. fxe3) 30... f5 $2 {[%emt 0:00:12]} ({Black should play} 30... e3 $1 $19 {[%cal Re3f2]} 31. fxe3 (31. Ne4 $2 Rxe4 32. Bxe4 d2 $19) 31... Re8) 31. Rc1 {[%emt 0:01:07]} (31. Qa5 $1 $14 {is superior.} Kg6 32. b7) 31... Kf8 {[%emt 0:01:24]} 32. Rcc7 $40 {[%emt 0:00:56][%mdl 128] Black needs to defend precisely. The board is on fire.} Re8 {[%emt 0:00:22]} 33. Qa5 {[%emt 0:01:01]} (33. Ra5 $1 $14 Nh6 34. Ra8 (34. Qa1 Bf6 $15) 34... Rxb6 35. Rxe8+ Kxe8 36. Qa7) 33... Ne5 $2 {[%emt 0:01:08][%mdl 8192] [#]} (33... Qxb6 $11 34. Qxf5+ Qf6) 34. b7 $1 $18 {[%emt 0:01:23]} Bd8 {[%emt 0:00:45]} (34... Rb5 $142 35. Qxb5 Qxc7 36. Qxe8+ Kxe8 37. Ra8+ Kd7) 35. Rh7 {[%emt 0:00:01]} Nf7 {[%emt 0:00:36]} (35... Kg8 $18 36. b8=B Rxb8 37. Rag7+ (37. Qa4 Be7 $11) 37... Kf8) 36. Qxf5 {[%emt 0:00:12][%csl Gh7][%cal Rf5f7]} Re7 {[%emt 0:00:25]} 37. b8=Q {[%emt 0:00:34] White used his chance.  Weighted Error Value: White=0.26 (precise) /Black=0.79} 1-0

[Event "3rd VIZAG GM-Open 2022"]
[Site "Visakapatnam"]
[Date "2022.06.14"]
[Round "6.13"]
[White "Abdurakhmonov, Mukhammadali"]
[Black "Allahverdiyeva, Ayan"]
[Result "1/2-1/2"]
[ECO "E32"]
[WhiteElo "2308"]
[BlackElo "2120"]
[Annotator "TA"]
[PlyCount "52"]
[EventDate "2022.06.13"]
[EventType "swiss"]
[EventCountry "IND"]
[SourceTitle "playchess.com"]
[Source "ChessBase"]
[SourceQuality "1"]
[TimeControl "5400+30"]

{[%evp 11,52,11,44,46,50,38,47,24,53,0,0,-14,95,63,322,-98,-88,-94,-6,-10,-14,-2,-12,-8,0,0,0,0,0,0,0,0,0,0,0,0,0,0,0,0,0,0,0]} 1. d4 {[%emt 1:31:00]} Nf6 {[%emt 1:31:00]} 2. c4 {[%emt 0:00:30]} e6 {[%emt 0:00:30]} 3. Nc3 {[%emt 0:00:30]} Bb4 {[%emt 0:00:30]} 4. Qc2 {[%emt 0:00:30]} d6 {[%emt 0:00:30]} 5. Bg5 {[%emt 0:00:30]} Nbd7 {[%emt 0:00:30]} 6. e3 {[%emt 0:00:30]} c5 {[%emt 0:00:30]} 7. dxc5 {[%emt 0:00:30] E32: Nimzo-Indian: Classical (4 Qc2): 4...0-0.} Nxc5 {[%emt 0:00:30]} 8. Nge2 $1 {[%emt 0:00:30]} Bd7 {[%emt 0:00:30]} 9. O-O-O $1 {[%emt 0:00:30] White is slightly better.} Qb6 {[%emt 0:00:30]} 10. Bf4 {[%emt 0:00:30]} ({White should try} 10. a3 $14 Bxc3 11. Nxc3) 10... d5 $11 {[%emt 0:00:30] [#]} 11. a3 $146 {[%emt 0:00:30]} ({Predecessor:} 11. cxd5 Rc8 12. dxe6 Bxe6 13. Kb1 O-O 14. f3 Na6 15. e4 Bxc3 16. Nxc3 Bxa2+ 17. Nxa2 Rxc2 18. Kxc2 Nc5 19. Kb1 Qe6 20. Rd6 Qe7 21. Nc3 Ncxe4 22. fxe4 Nh5 {0-1 (22) Ciorgovean,I (2276)-Miron,L (2455) Olanesti 2019}) 11... Bxa3 {[%emt 0:00:30]} 12. bxa3 $16 {[%emt 0:00:30]} e5 $2 {[%emt 0:00:30][%mdl 8192]} (12... O-O $1 $14) 13. Rxd5 $2 {[%emt 0:00:30]} exf4 $17 {[%emt 0:00:30]} 14. Re5+ {[%emt 0:00:30]} Be6 {[%emt 0:00:30]} (14... Kf8 $17 {And now ...Ng4 would win.} 15. Nxf4 Qa5) 15. Na4 $1 $11 {[%emt 0:00:30] The position is equal.} Nxa4 {[%emt 0:00:30]} 16. Qxa4+ {[%emt 0:00:30]} Nd7 {[%emt 0:00:30] Strongly threatening ...Qd6.} 17. Nxf4 {[%emt 0:00:30]} O-O {[%emt 0:00:30]} 18. Rxe6 {[%emt 0:00:30]} fxe6 {[%emt 0:00:30]} 19. Qxd7 {[%emt 0:00:30]} Rxf4 $1 {[%emt 0:00:30]} 20. exf4 {[%emt 0:00:30]} Rd8 {[%emt 0:00:30]} 21. Qe7 {[%emt 0:00:30]} Qd4 {[%emt 0:00:30]} 22. Qxe6+ {[%emt 0:00:30]} Kh8 {[%emt 0:00:30] [#] ( -> ...Qc3+)} 23. Qe5 {[%emt 0:00:30]} Qd2+ {[%emt 0:00:30]} 24. Kb1 {[%emt 0:00:30][%cal Bc1b1,Bb1b2,Bb2b3][%mdl 32]} Qd1+ {[%emt 0:00:30]} 25. Kb2 {[%emt 0:00:30] aiming for Qf5.} Qd2+ {[%emt 0:00:30]} 26. Kb3 {[%emt 0:00:30] [#] Black must now prevent Be2.} Qd1+ {[%emt 0:00:30] Weighted Error Value: White=0.34/Black=0.32} 1/2-1/2

[Event "3rd VIZAG GM-Open 2022"]
[Site "Visakapatnam"]
[Date "2022.06.14"]
[Round "6.14"]
[White "Subhayan Kundu"]
[Black "Manish Anto Cristiano F"]
[Result "1-0"]
[ECO "B90"]
[WhiteElo "2323"]
[BlackElo "2071"]
[Annotator "TA"]
[PlyCount "109"]
[EventDate "2022.06.13"]
[EventType "swiss"]
[EventCountry "IND"]
[SourceTitle "playchess.com"]
[Source "ChessBase"]
[SourceQuality "1"]
[TimeControl "5400+30"]

{[%evp 18,109,27,27,26,16,25,29,33,17,27,32,43,13,10,0,10,0,16,0,91,97,80,75,83,68,75,69,83,85,75,68,171,181,170,179,225,206,235,232,230,229,241,246,229,230,293,268,293,211,202,199,271,195,218,213,215,215,314,312,317,298,472,459,545,543,535,522,520,539,734,741,739,690,700,639,738,735,732,729,29975,29976,29975,29975,29975,29976,29980,29981,29981,29982,29979,29980,29980,29981]} 1. e4 {[%emt 1:31:00]} c5 {[%emt 1:31:00]} 2. Nf3 {[%emt 0:00:30]} d6 {[%emt 0:00:30]} 3. d4 {[%emt 0:00:30]} cxd4 {[%emt 0:00:30]} 4. Nxd4 {[%emt 0:00:30]} Nf6 {[%emt 0:00:30]} 5. Nc3 {[%emt 0:00:30]} a6 {[%emt 0:00:30]} 6. Be3 {[%emt 0:00:30]} e5 {[%emt 0:00:30]} 7. Nb3 {[%emt 0:00:30]} Be6 {[%emt 0:00:30]} 8. f3 {[%emt 0:00:30]} Be7 {[%emt 0:00:30]} 9. Qd2 {[%emt 0:00:30]} h5 {[%emt 0:00:30]} 10. Be2 {[%emt 0:00:30]} O-O {[%emt 0:00:30] B90: Sicilian Najdorf: Unusual White 6th moves, 6 Be3 Ng4 and 6 Be3 e5.} 11. O-O {[%emt 0:00:30]} Nbd7 {[%emt 0:00:30]} 12. Nd5 {[%emt 0:00:30]} Bxd5 {[%emt 0:00:30] White has an edge.} 13. exd5 {[%emt 0:00:30]} b6 {[%emt 0:00:30]} 14. c4 {[%emt 0:00:30]} g6 {[%emt 0:00:30]} 15. Rac1 {[%emt 0:00:30]} Nh7 {[%emt 0:00:30]} 16. f4 {[%emt 0:00:30]} exf4 {[%emt 0:00:30]} 17. Bxf4 {[%emt 0:00:30]} Bg5 {[%emt 0:00:30]} 18. Nd4 {[%emt 0:00:30] [#]} Ne5 $146 {[%emt 0:00:30]} (18... Re8 $11 {keeps the balance.}) ({Predecessor:} 18... a5 19. Nb5 Bxf4 20. Qxf4 Ne5 21. Rc3 Kh8 22. Rg3 Rg8 23. Nd4 Qc7 24. Nc6 Rae8 {½-½ (56) Nestorovic,L (2337)-Govedarica,R (2385) Veliko Gradiste 2015}) 19. Nc6 $36 {[%emt 0:00:30][%mdl 2048] White is really pushing.} Bxf4 {[%emt 0:00:30]} 20. Qxf4 {[%emt 0:00:30]} Qc7 {[%emt 0:00:30]} 21. Nxe5 {[%emt 0:00:30] White is much more active.} dxe5 {[%emt 0:00:30]} 22. Qe3 {[%emt 0:00:30]} Qd6 {[%emt 0:00:30]} 23. c5 {[%emt 0:00:30]} bxc5 {[%emt 0:00:30]} 24. Qxc5 {[%emt 0:00:30]} Rad8 {[%emt 0:00:30]} (24... Qxc5+ $14 25. Rxc5 Kg7) 25. Qxd6 $18 {[%emt 0:00:30]} Rxd6 {[%emt 0:00:30] [#]} 26. Rc6 $1 {[%emt 0:00:30]} Rxd5 {[%emt 0:00:30]} (26... Rd7 {was called for.} 27. b4 (27. Bxa6 Kg7 $16) 27... Kg7) 27. Bc4 {[%emt 0:00:30]} ({Weaker is} 27. Rxa6 Kg7 $14) (27. Bxa6 Rd2 $14) 27... Rd2 {[%emt 0:00:30]} 28. Rxg6+ {[%emt 0:00:30]} ({Stronger than} 28. Rxa6 Kg7 $11) 28... Kh8 {[%emt 0:00:30]} 29. Rxf7 {[%emt 0:00:30]} Rxf7 {[%emt 0:00:30]} 30. Bxf7 {[%emt 0:00:30][%csl Gf7][%cal Rg6g8][%mdl 4096] [#] Endgame KRB-KRN} Nf8 {[%emt 0:00:30]} 31. Rxa6 {[%emt 0:00:30]} ({Don't play} 31. Rg8+ Kh7 32. Rxf8 Kg7) 31... h4 {[%emt 0:00:30]} 32. b4 {[%emt 0:00:30]} e4 {[%emt 0:00:30]} 33. Bh5 {[%emt 0:00:30] aiming for a4.} Rb2 {[%emt 0:00:30]} 34. a3 {[%emt 0:00:30]} Kg7 {[%emt 0:00:30]} (34... e3 $142 35. h3 Kg7) 35. Rd6 {[%emt 0:00:30]} Rb3 {[%emt 0:00:30]} 36. Rd4 {[%emt 0:00:30]} e3 {[%emt 0:00:30]} 37. Kf1 {[%emt 0:00:30]} Ne6 {[%emt 0:00:30]} (37... h3 $142 38. gxh3 Rxa3) 38. Rxh4 {[%emt 0:00:30]} Kf6 {[%emt 0:00:30]} 39. Bf3 {[%emt 0:00:30] Threatens to win with a4.} Ke5 {[%emt 0:00:30]} (39... Rxa3 {was necessary.} 40. Ke2 Ng7 41. Rf4+ Kg5) 40. Re4+ {[%emt 0:00:30]} Kf5 {[%emt 0:00:30]} 41. g4+ {[%emt 0:00:30]} Kf6 {[%emt 0:00:30]} 42. a4 {[%emt 0:00:30]} Ng5 {[%emt 0:00:30]} 43. Rf4+ {[%emt 0:00:30]} Kg6 {[%emt 0:00:30]} 44. Be4+ {[%emt 0:00:30]} Kg7 {[%emt 0:00:30]} 45. Bd5 {[%emt 0:00:30]} Rb2 {[%emt 0:00:30]} 46. h4 {[%emt 0:00:30]} Nh3 {[%emt 0:00:30]} 47. Re4 {[%emt 0:00:30]} e2+ {[%emt 0:00:30]} 48. Rxe2 {[%emt 0:00:30]} Rxe2 {[%emt 0:00:30]} 49. Kxe2 {[%emt 0:00:30] KB-KN. White mates.} Nf4+ {[%emt 0:00:30]} 50. Kf3 {[%emt 0:00:30]} Nxd5 {[%emt 0:00:30]} 51. b5 {[%emt 0:00:30]} Nb6 {[%emt 0:00:30]} 52. a5 {[%emt 0:00:30][%cal Ba4a5,Ba5a6,Ba6a7][%mdl 32]} Nc4 {[%emt 0:00:30]} 53. a6 {[%emt 0:00:30]} Kf6 {[%emt 0:00:30]} 54. a7 {[%emt 0:00:30]} Nb6 {[%emt 0:00:30]} 55. Ke4 {[%emt 0:00:30] Weighted Error Value: White=0.07 (flawless) /Black=0.32} 1-0

[Event "3rd VIZAG GM-Open 2022"]
[Site "Visakapatnam"]
[Date "2022.06.14"]
[Round "6.15"]
[White "Krishnan Ritvik"]
[Black "Kaustuv, Kundu"]
[Result "0-1"]
[ECO "B47"]
[WhiteElo "2023"]
[BlackElo "2327"]
[Annotator "TA"]
[PlyCount "56"]
[EventDate "2022.06.13"]
[EventType "swiss"]
[EventCountry "IND"]
[SourceTitle "playchess.com"]
[Source "ChessBase"]
[SourceQuality "1"]
[TimeControl "5400+30"]

{[%evp 14,56,18,17,23,7,0,0,0,-20,9,-56,-48,-47,-42,-66,-32,-66,-43,-93,-76,-79,-84,-121,-130,-191,-199,-202,-207,-236,-225,-408,-412,-406,-392,-385,-310,-709,-520,-1027,-1002,-1720,-1716,-2052,-1700]} 1. e4 {[%emt 1:31:00]} c5 {[%emt 1:31:00]} 2. Nf3 {[%emt 0:00:30]} Nc6 {[%emt 0:00:30]} 3. d4 cxd4 {[%emt 0:00:30]} 4. Nxd4 {[%emt 0:01:00]} e6 {[%emt 0:00:30]} 5. Nc3 {[%emt 0:00:30]} a6 {[%emt 0:00:30]} 6. g3 {[%emt 0:00:30]} Qc7 {[%emt 0:00:30]} 7. Bg2 {[%emt 0:00:30]} Nf6 {[%emt 0:00:30]} 8. O-O {[%emt 0:00:30]} h5 {[%emt 0:00:30] 8...Nxd4 is a critical line. B47: Sicilian: Taimanov: 5 Nc3 Qc7 6 f4, 6 g3 and 6 Be2.} 9. Nb3 {[%emt 0:00:30]} h4 {[%emt 0:00:30]} 10. Re1 {[%emt 0:00:30]} hxg3 {[%emt 0:00:30] The position is equal.} 11. hxg3 {[%emt 0:00:30][%cal Oc3d5]} Ne5 {[%emt 0:00:30]} 12. Bf4 {[%emt 0:00:30]} (12. f4 $11 Neg4 13. e5 Bc5+ 14. Kf1) 12... d6 $1 $15 {[%emt 0:00:30] [#]} 13. Nd2 $146 {[%emt 0:00:30]} ({Predecessor:} 13. a4 Bd7 14. a5 Be7 15. Qd4 Bc6 16. Na4 Nfd7 17. Nb6 Rd8 18. Nxd7 Rxd7 19. Be3 {0-1 (49) Sanal,V (2549)-Perunovic,M (2608) Chess.com INT 2017}) 13... Bd7 {[%emt 0:00:30]} 14. a4 {[%emt 0:00:30]} Be7 {[%emt 0:00:30]} 15. Qe2 {[%emt 0:00:30]} Nfg4 {[%emt 0:00:30]} 16. a5 {[%emt 0:00:30]} (16. Nf3 $15) 16... g5 $17 {[%emt 0:00:30] Black is more active.} 17. Bxe5 {[%emt 0:00:30]} Nxe5 {[%emt 0:00:30][%cal Bg4e5,Be5g6,Bg6f4][%mdl 32]} 18. Qe3 {[%emt 0:00:30]} g4 {[%emt 0:00:30]} 19. Rec1 {[%emt 0:00:30]} (19. Ra3 $17 {was called for.}) 19... Rh5 $19 {[%emt 0:00:30]} 20. Ne2 {[%emt 0:00:30]} Bg5 {[%emt 0:00:30]} 21. Nf4 {[%emt 0:00:30]} Ng6 {[%emt 0:00:30][%cal Od6d5]} 22. Qe2 $2 {[%emt 0:00:30] [#]} (22. c4 {keeps fighting.}) 22... Bxf4 {[%emt 0:00:30]} ({Avoid the trap} 22... Nxf4 $2 23. gxf4 Bxf4 24. Qxg4 Bh2+ 25. Kf1 $17) 23. gxf4 {[%emt 0:00:30]} O-O-O {[%emt 0:00:30]} 24. Qe3 {[%emt 0:00:30]} ({Stronger than} 24. Qxg4 Rdh8 25. Nf3 e5 $19) 24... e5 {[%emt 0:00:30]} 25. f5 {[%emt 0:00:30]} (25. fxe5 dxe5 26. Nf1) 25... Nf4 {[%emt 0:00:30] [#] Strongly threatening ...Rdh8. Black is clearly winning.} 26. c4 {[%emt 0:00:30]} (26. Re1 $142 Rdh8 27. Qg3) 26... Rdh8 {[%emt 0:00:30] Threatens to win with ...Rh2.} 27. Nf1 {[%emt 0:00:30] Inhibits Rh2.} Qd8 {[%emt 0:00:30]} 28. f3 {[%emt 0:00:30]} g3 {[%emt 0:00:30] White did not feel at home in the position after the opening.  Weighted Error Value: White=1.03/Black=0.07 (flawless)} 0-1

[Event "3rd VIZAG GM-Open 2022"]
[Site "Visakapatnam"]
[Date "2022.06.14"]
[Round "6.16"]
[White "Aradhya, Garg"]
[Black "Priyankara, Chamil"]
[Result "1-0"]
[ECO "E62"]
[WhiteElo "2275"]
[BlackElo "1938"]
[Annotator "TA"]
[PlyCount "95"]
[EventDate "2022.06.13"]
[EventType "swiss"]
[EventCountry "IND"]
[SourceTitle "playchess.com"]
[Source "ChessBase"]
[SourceQuality "1"]
[TimeControl "5400+30"]

{[%evp 15,95,0,7,-13,11,11,33,0,48,18,18,-27,-23,-34,0,0,14,0,6,0,43,28,44,0,77,77,81,77,82,83,80,68,97,95,113,110,116,121,101,101,187,189,190,181,247,247,247,247,247,247,380,358,439,429,457,446,516,455,502,447,554,533,533,538,668,668,660,654,658,640,1022,1041,602,536,29976,29977,29978,29979,29984,29985,29984,29985]} 1. d4 {[%emt 0:00:02]} Nf6 {[%emt 0:14:11]} 2. c4 {[%emt 0:00:37]} g6 {[%emt 0:00:19]} 3. Nf3 {[%emt 0:00:20]} Bg7 {[%emt 0:02:00]} 4. g3 {[%emt 0:01:22]} O-O {[%emt 0:02:29]} 5. Nc3 {[%emt 0:00:43]} d6 {[%emt 0:03:05]} 6. Bg2 {[%emt 0:00:07]} c6 {[%emt 0:00:02]} 7. h3 {[%emt 0:09:06]} a6 {[%emt 0:01:36]} 8. O-O {[%emt 0:06:20]} b5 $1 {[%emt 0:00:18]} 9. b3 {[%emt 0:00:08][%cal Bb2b3,Bb3c4,Bc4c5][%mdl 32] [#] E62: King's Indian: Fianchetto: 6...c6 and Panno Variation (6...Nc6) without ...a6.} bxc4 $146 {[%emt 0:06:48]} ({Predecessor:} 9... b4 10. Nb1 a5 11. Nbd2 Ba6 12. Qc2 Nbd7 13. Bb2 d5 14. Rfe1 Rc8 15. e4 dxe4 16. Nxe4 Nxe4 17. Rxe4 {½-½ (72) Jirka,J (2392)-Vykouk,J (2442) Chess.com INT 2021}) 10. bxc4 {[%emt 0:00:02]} a5 {[%emt 0:00:01]} 11. Ba3 {[%emt 0:08:54] White is slightly better.} Ba6 {[%emt 0:03:12]} (11... Na6 $11 {is superior.}) 12. c5 {[%emt 0:01:50]} d5 {[%emt 0:02:22]} 13. Ne5 {[%emt 0:05:06]} Nfd7 {[%emt 1:00:37]} 14. f4 {[%emt 0:06:13]} e6 {[%emt 0:00:00]} 15. Nf3 {[%emt 0:03:13]} Bc4 {[%emt 0:00:00]} 16. Re1 {[%emt 0:08:41]} Na6 {[%emt 0:00:00]} 17. Qd2 {[%emt 0:14:08]} f5 {[%emt 0:00:00]} 18. e3 {[%emt 0:01:37]} Qe7 {[%emt 0:00:00]} 19. g4 {[%emt 0:04:56]} Rfb8 {[%emt 0:00:00]} (19... fxg4 $11 20. hxg4 Nb4) 20. g5 $16 {[%emt 0:00:13] Black is now going downhill.} Qd8 {[%emt 0:00:00]} 21. Bf1 {[%emt 0:00:37]} Bxf1 {[%emt 0:00:00]} 22. Rxf1 {[%emt 0:00:03]} Nc7 {[%emt 0:00:00]} 23. Rab1 {[%emt 0:00:57]} Qc8 {[%emt 0:00:00]} 24. Qd3 {[%emt 0:03:07] White is more active.} Qa6 {[%emt 0:00:00]} 25. Qxa6 {[%emt 0:00:19]} Nxa6 {[%emt 0:00:00]} 26. Rxb8+ {[%emt 0:00:50]} Rxb8 {[%emt 0:00:00]} 27. Rb1 {[%emt 0:00:24]} Kf7 {[%emt 0:00:00]} (27... Rxb1+ $16 28. Nxb1 Kf8) 28. Rxb8 $18 {[%emt 0:00:17]} Ndxb8 {[%emt 0:00:00]} 29. Nd2 {[%emt 0:01:34]} Nb4 {[%emt 0:00:00]} (29... h6 $142) 30. Bxb4 {[%emt 0:05:14]} axb4 {[%emt 0:00:00][%mdl 4096] Endgame KBN-KNN} 31. Ne2 {[%emt 0:00:34]} Ke8 {[%emt 0:00:00]} 32. Nc1 {[%emt 0:00:10]} Kd8 {[%emt 0:00:00]} (32... Bf8 {might work better.} 33. Nd3 Na6) 33. Nd3 {[%emt 0:00:08]} Na6 {[%emt 0:00:00]} 34. Kf2 {[%emt 0:00:53]} Kc7 {[%emt 0:00:00]} 35. h4 {[%emt 0:00:18]} Kb7 {[%emt 0:00:00]} 36. h5 {[%emt 0:00:53]} gxh5 {[%emt 0:00:00]} 37. Kg3 {[%emt 0:00:06]} Nc7 {[%emt 0:00:00]} 38. Nxb4 {[%emt 0:00:37]} Nb5 {[%emt 0:00:00]} 39. Nb1 {[%emt 0:01:58] Inhibits Nc3.} h6 {[%emt 0:00:00]} 40. gxh6 {[%emt 0:00:50]} Bxh6 {[%emt 0:03:03]} 41. a4 {[%emt 0:01:23][%cal Ba2a4,Ba4a5,Ba5a6][%mdl 32]} h4+ {[%emt 0:00:02]} 42. Kxh4 {[%emt 0:00:58]} Nxd4 {[%emt 0:00:27]} 43. exd4 {[%emt 0:00:04]} Bxf4 {[%emt 0:00:01]} 44. a5 {[%emt 0:02:08]} e5 {[%emt 0:05:46]} 45. a6+ {[%emt 0:00:06] White mates.} Kc7 {[%emt 0:00:01]} 46. Nd3 {[%emt 0:00:44]} exd4 {[%emt 0:04:16]} 47. Nxf4 {[%emt 0:00:06]} Kb8 {[%emt 0:00:00] [#]} 48. Nxd5 $1 {[%emt 0:00:29] Weighted Error Value: White=0.07 (flawless) /Black=0.53} 1-0